Cogmind - Beta 14 @@@ ROGUE MODE // 2024.08.07 @ 16:24:37 Player: J1ang-5h1 Result: Destroyed by Autobeam Turret with Autobeam Performance ------------- Evolutions (0) 0 Regions Visited (2) 400 Robots Destroyed (28) 140 Value Destroyed (513) 513 Prototype IDs (5) 100 Alien Tech Used (0) 0 Bonus (0) 0 TOTAL SCORE: 1153 Bonus ------- None Cogmind --------- Core Integrity 0/250 Matter 157/300 Energy 96/100 System Corruption 0% Temperature Cool (8) Movement Treading (320) Ox2 Location -10/Subcaves Parts ------- > --- POWER (1) -------- (None) > --- PROPULSION (2) --- Light Treads Light Treads > --- UTILITY (2) ------ Huge Storage Unit Visual Processing Unit > --- WEAPON (2) ------- Light Assault Rifle Grenade Launcher > --- INVENTORY (25) --- Subdweller Power Source Subdweller Power Source Wheel Medium Matter Pod (100) Subdweller Optics Terrain Scanner Improved Terrain Scanner Seismic Detector ECM Suite Utility Shielding Medium Laser Beam Cannon Assault Rifle Light Assault Rifle Light Cannon Mining Laser Peak State ------------ > --- POWER ------------ Ion Engine > --- PROPULSION ------- Light Treads Light Treads > --- UTILITY ---------- Huge Storage Unit Visual Processing Unit > --- WEAPON ----------- Assault Rifle Light Assault Rifle > --- INVENTORY -------- Subdweller Power Source Subdweller Power Source Wheel Medium Matter Pod Subdweller Optics Terrain Scanner Improved Terrain Scanner Seismic Detector ECM Suite Utility Shielding Medium Laser Beam Cannon Light Assault Rifle Light Cannon Grenade Launcher Mining Laser [Rating: 10] Favorites ----------- Power Light Ion Engine Engine Light Ion Engine Propulsion Aluminum Leg Treads Light Treads Leg Aluminum Leg Utility Large Storage Unit Device ECM Suite Storage Large Storage Unit Processor Visual Processing Unit Weapon Assault Rifle Energy Gun Medium Laser Ballistic Gun Assault Rifle Launcher Grenade Launcher Special Weapon Mining Laser Build | -11 -10 -10 ------- Run | Yrd Mat Sub Slots Evolved . | . . . Power . | . . . Propulsion . | . . . Utility . | . . . Weapon . | . . . Parts Attached 13 | . 9 4 Power 1 | . 1 . Engine 1 | . 1 . Core . | . . . Reactor . | . . . Propulsion 2 | . . 2 Treads 2 | . . 2 Leg . | . . . Wheel . | . . . Hover . | . . . Flight . | . . . Utility 4 | . 4 . Device 1 | . 1 . Storage 2 | . 2 . Processor 1 | . 1 . Hackware . | . . . Protection . | . . . Artifact . | . . . Weapon 6 | . 4 2 Energy Gun 1 | . 1 . Energy Cannon . | . . . Ballistic Gun 1 | . 1 . Ballistic Cannon . | . . . Launcher 3 | . 2 1 Special Weapon 1 | . . 1 Impact Weapon . | . . . Slashing Weapon . | . . . Piercing Weapon . | . . . Special Melee Weapon . | . . . Unidentified Prototypes . | . . . Parts Lost 2 | . . 2 Power 1 | . . 1 Propulsion 1 | . . 1 Utility . | . . . Weapon . | . . . Highest Loss Streak 1 | . . 1 To Critical Strikes . | . . . Average Slot Usage (%) 98 | . 98 98 Engine 13 | . 14 12 Treads 2 | . . 15 Leg 24 | . 28 11 Device 6 | . 7 . Storage 14 | . 14 14 Processor 6 | . 4 14 Energy Gun 5 | . 6 . Ballistic Gun 21 | . 20 24 Peak Build Rating 10 | 6 9 10 Average Rating 8 | 6 8 9 On Entrance 7 | 6 6 9 Naked Turns . | . . . Heaviest Build 89 | 12 88 89 Greatest Support 40 | 20 20 40 Greatest Overweight (x) 4 | . 4 4 Average Overweight (x) 1 | . 1 2 Largest Inventory Capacity 25 | 8 25 25 Average Capacity 18 | 8 17 25 Most Carried 16 | 7 15 16 Average Carried 12 | 5 12 15 Final Capacity 25 | 8 25 25 Final Carried 16 | 6 15 16 Class Distribution -------------------- 100% | Mutant Dominant Class ---------------- Mutant | -10/Materials Mutant | -10/Subcaves Resources | -11 -10 -10 ----------- Run | Yrd Mat Sub Matter Collected 646 | 228 343 75 Remotely . | . . . Salvage Created 594 | 122 345 127 Parts 54 | 9 32 13 Haulers Intercepted . | . . . Recyclers Shooed . | . . . Parts Field Recycled . | . . . Retrieved Matter . | . . . Parts Self-Destructed 9 | . . 9 Prevented . | . . . Kills | -11 -10 -10 ------- Run | Yrd Mat Sub Combat Hostiles Destroyed 21 | . 15 6 Guns 10 | . 7 3 AOE 11 | . 8 3 Classes Destroyed 6 | 2 3 1 Tunneler 4 | 3 1 . Recycler 1 | 1 . . Watcher 2 | . 2 . Swarmer 13 | . 9 4 Grunt 6 | . 6 . Subdweller 2 | . . 2 Best Kill Streak 7 | 2 7 4 Combat Bots Only 6 | . 6 4 Max Kills in Single Turn 6 | 1 6 3 Gunslinging . | . . . Exploded 5 | . 5 3 Melee . | . . . Uniques/NPCs Destroyed . | . . . Combat | -11 -10 -10 -------- Run | Yrd Mat Sub Hostile Shots Fired 107 | . 68 39 Missed 30 | . 16 14 Damage Taken 984 | . 524 460 Core 252 | . 122 130 Absorbed by Shields . | . . . Regen/Repaired (Parts) 46 | . 46 . Core Remaining (%) 100 | 100 . . Volleys Fired 84 | 10 49 25 Largest 2 | 2 2 2 Hottest 100 | 70 70 100 Shots Fired 158 | 20 96 42 Gun 140 | 20 94 26 Cannon . | . . . Launcher 14 | . 2 12 Special 4 | . . 4 Kinetic 98 | 10 62 26 Thermal 46 | 10 32 4 Explosive 14 | . 2 12 Electromagnetic . | . . . Robot Hit Streak 17 | 4 15 17 Robot Miss Streak 6 | 2 6 1 Penetration Max . | . . . Secondary Targets 2 | . 1 1 Max Gunslinging Chain 1 | . 1 1 Shots Hit Robots 80 | 12 54 14 Core Hits 48 | 5 29 14 Critical Kills . | . . . Critical Parts Destroyed . | . . . Critical Strikes . | . . . Melee Attacks . | . . . Impact . | . . . Slashing . | . . . Piercing . | . . . Sneak Attacks . | . . . Combat Hostiles . | . . . Follow-up Attacks . | . . . Damage Inflicted 1623 | 156 1069 398 Guns 906 | 156 640 110 Cannons . | . . . Explosions 714 | . 426 288 Melee . | . . . Ramming 3 | . 3 . Kinetic 651 | 81 460 110 Thermal 325 | 75 250 . Explosive 644 | . 356 288 Electromagnetic . | . . . Impact . | . . . Slashing . | . . . Piercing . | . . . Highest Corruption . | . . . Average Corruption . | . . . Corruption Purged . | . . . Corruption Blocked . | . . . Overload Shots . | . . . Overflow Damage . | . . . Projectiles . | . . . Explosions . | . . . Melee . | . . . Knockbacks . | . . . Impact . | . . . Kinetic . | . . . Secondary . | . . . Self-Inflicted Damage 31 | . . 31 Shots 1 | . . 1 Rammed . | . . . Targets Rammed 1 | . 1 . Kicked 1 | . 1 . Crushed . | . . . Highest Temperature 198 | 36 198 . Average Temperature 46 | 14 54 . Received Heat Transfer 318 | . 204 114 Siege Activations . | . . . Robots Corrupted . | . . . Combat Hostiles . | . . . Parts Fried . | . . . Impact Corruptions . | . . . Robots Melted . | . . . Combat Hostiles . | . . . Parts Melted . | . . . Heat Transferred 790 | 222 568 . Parts Sabotaged . | . . . Parts Stolen . | . . . Parts Stripped . | . . . Power Chain Reactions . | . . . Alert | -11 -10 -10 ------- Run | Yrd Mat Sub Peak Influence 327 | 20 327 . Initial 13 | . 13 . Average 129 | 11 136 . Maximum Alert Level 1 | . 1 . Low Security (%) 98 | 100 98 . Level 1 1 | . 1 . Level 2 . | . . . Level 3 . | . . . Level 4 . | . . . Level 5 . | . . . High Security . | . . . Max Security . | . . . Squads Dispatched 4 | . 4 . Investigation 2 | . 2 . Extermination . | . . . Reinforcement 2 | . 2 . Assault . | . . . Garrison . | . . . Intercept . | . . . Searches Triggered . | . . . Construction Impeded . | . . . Haulers Reinforced . | . . . Active Scanning Responses . | . . . Cargo Convoy Interrupts . | . . . Stealth | -11 -10 -10 --------- Run | Yrd Mat Sub Distress Signals 2 | . 2 . Communications Jammed . | . . . Distress Signals . | . . . Times Spotted 35 | . 28 7 Peak Tracking Total 6 | . 6 4 Tactical Retreats 5 | . 3 2 Traps | -11 -10 -10 ------- Run | Yrd Mat Sub Traps Triggered 1 | . 1 . Indirectly 1 | . 1 . Trap Hack Attempts . | . . . Triggered . | . . . Disarmed . | . . . Reprogrammed . | . . . Reused . | . . . Traps Extracted . | . . . Installed . | . . . Triggered . | . . . Machines | -11 -10 -10 ---------- Run | Yrd Mat Sub Machines Disabled 4 | . 2 2 Max in Single Turn 2 | . 2 1 Machines Repaired . | . . . Machines Dismantled . | . . . Machines Sabotaged . | . . . Overloaded Fab Kills . | . . . Hacking | -11 -10 -10 --------- Run | Yrd Mat Sub Machines Accessed 7 | . 7 . Terminals 4 | . 4 . Fabricators . | . . . Repair Stations 1 | . 1 . Recycling Units 2 | . 2 . Scanalyzers . | . . . Garrison Access . | . . . Total Hacks 33 | . 33 . Successful 16 | . 16 . Failed 17 | . 17 . Catastrophic 1 | . 1 . Database Lockouts . | . . . Manual 21 | . 21 . Terminals 24 | . 24 . Fabricators . | . . . Repair Stations 2 | . 2 . Recycling Units 7 | . 7 . Scanalyzers . | . . . Garrison Access . | . . . Terminal Hacks 10 | . 10 . Robot Analysis 2 | . 2 . Prototype ID Bank 3 | . 3 . Alert Level 2 | . 2 . Locate Traps 1 | . 1 . Hauler Manifests 1 | . 1 . Zone Layout 1 | . 1 . Fabricator Hacks . | . . . Repair Station Hacks 2 | . 2 . Scan Component 1 | . 1 . Repair 1 | . 1 . Recycling Unit Hacks . | . . . Scanalyzer . | . . . Garrison Access Hacks . | . . . Unauthorized Hacks 4 | . 4 . Terminals 1 | . 1 . Botnet 1 | . 1 . Fabricators . | . . . Repair Stations . | . . . Recycling Units 3 | . 3 . Mask 1 | . 1 . Tunnel 2 | . 2 . Scanalyzers . | . . . Garrison Access . | . . . Data Cores Recovered . | . . . Used . | . . . Hacking Detections 7 | . 7 . Full Trace Events . | . . . Feedback Events . | . . . Feedback Blocked . | . . . Robot Schematics Acquired . | . . . Robots Built . | . . . Authchips . | . . . Time . | . . . Total Robot Build Rating . | . . . Part Schematics Acquired . | . . . Parts Built . | . . . Authchips . | . . . Time . | . . . Total Part Build Rating . | . . . Parts Repaired 1 | . 1 . Time 26 | . 26 . Parts Recycled . | . . . Recycled Matter . | . . . Retrieved Matter . | . . . Retrieved Components . | . . . Parts Scanalyzed . | . . . Part Schematics Acquired . | . . . Parts Damaged . | . . . Bothacking | -11 -10 -10 ------------ Run | Yrd Mat Sub Used RIF Installer . | . . . Robots Hacked . | . . . Non-combat . | . . . Combat . | . . . Robot Hacks Applied . | . . . Relay Couplers Released . | . . . Fabnet Peak Effective % . | . . . Robots Rewired . | . . . Allies Hacked . | . . . Hacks Repelled . | . . . Allies | -11 -10 -10 -------- Run | Yrd Mat Sub Total Allies . | . . . Largest Group . | . . . Highest-Rated Group . | . . . Highest-Rated Ally . | . . . Total Orders . | . . . Ally Attacks . | . . . Total Damage . | . . . Kills . | . . . Allies Corrupted . | . . . Allies Melted . | . . . Intel | -11 -10 -10 ------- Run | Yrd Mat Sub Robot Analysis Total 2 | . 2 . Derelict Logs Recovered 1 | . . 1 Drone Launches . | . . . Drone Recoveries . | . . . Exploration | -11 -10 -10 ------------- Run | Yrd Mat Sub Turns Passed 2034 | 91 1584 359 Spaces Moved 778 | 40 660 78 Core . | . . . Treads 45 | . . 45 Legs 733 | 40 660 33 Wheels . | . . . Hover . | . . . Flight . | . . . Fastest Speed 120 | 120 120 320 Average Speed 220 | 120 210 360 Slowest Speed 480 | 120 400 480 Overloaded Moves . | . . . Propulsion Burnouts . | . . . Robots Hopped . | . . . Cave-ins Triggered . | . . . Exploration Rate (%) 28 | 3 75 7 Regions Visited 2 Branch Regions 1 Pre-discovered Areas 2 | . 2 . Known Exits Taken . | . . . Unknown Exits Taken 2 | 1 1 . Scrap Searched . | . . . Spaces Dug 6 | . . 6 Terrain Destroyed 58 | . 13 45 Melee . | . . . Projectile . | . . . AOE 58 | . 13 45 Terrain Rammed . | . . . Walls Destroyed . | . . . Machines Disabled . | . . . Actions | -11 -10 -10 --------- Run | Yrd Mat Sub Total 935 | 64 760 111 Wait 37 | 11 26 . Move 776 | 39 659 78 Hop . | . . . Pick Up 18 | 2 13 3 Fast Attach . | . . . Attach 3 | . 2 1 Detach . | . . . Swap 10 | . 7 3 Drop 6 | 2 3 1 Fire 84 | 10 49 25 Melee . | . . . Ram . | . . . Kick 1 | . 1 . Crush . | . . . Escape Stasis . | . . . Rewire . | . . . Trap . | . . . Miscellaneous . | . . . Route ------- -11/Scrapyard -10/Materials (discovered 4 exits: [*Mat x2] / [*Min] / [*Sub]) -10/Subcaves (discovered 1 exit: *Rec) History --------- Turn | Location | Event 8 | -11/Scrapyard | Discovered new exit (range 3) 92 | -11/Scrapyard | Entered Materials 310 | -10/Materials | Build established: Mutant 324 | -10/Materials | Discovered new exit (range 15) 630 | -10/Materials | Discovered new exit (range 15) 806 | -10/Materials | Discovered new exit (range 4) 1502 | -10/Materials | Repaired Grenade Launcher 1636 | -10/Materials | Discovered new exit (range 11) 1676 | -10/Materials | Entered Subcaves 1736 | -10/Subcaves | Identified exit to Recycling 1831 | -10/Subcaves | Core integrity fell below 50% 1840 | -10/Subcaves | Core integrity fell below 20% 2035 | -10/Subcaves | Destroyed by Autobeam Turret with Autobeam Last Messages --------------- 01882_ Acquired Sub. Optics. 01889_ Subatomizers dissect the Aluminum Leg, destroying it. 01903_ Subatomizers dissect the Disposable Heat Sink. 02005_ S-10 Pest destroyed. 02008_ Ion Engine destroyed. 02008_ S-10 Pest destroyed. 02011_ Machine disabled. 02014_ The unstable cave ceiling collapses. 02015_ Flight Unit fries itself beyond repair. 02018_ Lgt. Assault Rifle fries itself beyond repair. 02018_ Lgt. Ion Engine fries itself beyond repair. 02018_ Flight Unit fries itself beyond repair. 02021_ Lgt. Assault Rifle fries itself beyond repair. 02022_ Flight Unit fries itself beyond repair. 02022_ The unstable cave ceiling collapses. Map ----- +----------------------------------------------------+ | ????????????????????????# #? ??????????? | | ????????????????????????# ## #???????????? | | ????????????????????????# % #???????????? | | ????????????????????????#% ##??????????? | | ????????????????????????# #??????????? | | ??????????????####??????# ## #?????????? | | ??????????????# ###???# ### #?????????? | | ??????????????# #???## #?## #?????????? | | ??????????????# ##???# #??? #????????? | | ???????????????# ##?## ##???? #???????? | | ????????????????# ### ##????? #??????? | | ?????????????????# ##????? " #?????? | | ????????????????## #??????""" ????? | | ????????????????# " ??""? ???? | | ????????????????# ### #???? ???? | | ????????????????# #?# ## ### #?????????? | | ????????????????## ####### ##??? #?????????? | | ?????????????????### ###??#####???????????????? | | ???????????????????# ## ##??????????????????? | | ????????????????#### # #??????????????? | | ????????????????# !%[ " ""???????????? | | ????????????????## ! ## "" "???????????? | | ?????????????????# ###?? # " # ???????????? | | ?????????????????# #?###?##?? ##????????????? | | ?????????????????# ### ##???????????????????? | | ?????????????????## @ #???????????????????? | | ??????????????????# #???????????????????? | | ?????????????????# ###???????????????????? | | ???????????????# # %%% ##?????????????????????? | | ???????????????## # # #??????????????????????? | | ???????????????# ##??????????????????????? | | ???????????????# ????????????????????????? | | ???????????????# ????????????????????????? | | ???????????????# ????????????????????????? | | ???????????????##### t????????????????????????? | | ???????????????????# > ????????????????????????? | | ???????????????????# t????????????????????????? | | ???????????????????# ????????????????????????? | | ???????????????????###" ????????????????????????? | | ?????????????????????#""?????????????????????????? | | ??????????????????????##?????????????????????????? | | ?????????????????????????????????????????????????? | | ?????????????????????????????????????????????????? | | ?????????????????????????????????????????????????? | | ?????????????????????????????????????????????????? | | ?????????????????????????????????????????????????? | | ?????????????????????????????????????????????????? | | ?????????????????????????????????????????????????? | | ?????????????????????????????????????????????????? | | ?????????????????????????????????????????????????? | +----------------------------------------------------+ Best States ------------- Heat Dissipation 25 Energy Generation 10 Energy Capacity 250 Matter Stores 300 Matter Capacity 300 Sight Range 18 Terrain Scan Density 10 ECM Strength 1 Evasion (%) 55 Recoil Reduction 2 Item Schematics ----------------- None Robot Schematics ------------------ None Fabricated ------------ Nothing Alien Tech Used ----------------- None Achievements -------------- None Challenges ------------ None Game ------ Seed DeliveryHeavyPit Manual? 0 Play Time 00:14:46 Cumulative 230.9 hours Start 2024.08.07 @ 16:11:59 End 2024.08.07 @ 16:24:37 Sessions 1 Manual Loads 0 Difficulty Rogue Special Mode None Game No. 170 Rogue 160 Adventurer 0 Explorer 10 Win Type - Total 3 Types 3/0/0/0/0/0/0/0/0 Lore% 41 Gallery% 66 Achievement% 53 Wizard Run 0 Options --------- Layout 1 ASCII 0 Keyboard 0 Movement Arrows Keybinds 1 Fullscreen 1 Font 24/Smallcaps Map View 50x35 Zoom Use 0% Tactical HUD 1 Map Filters NONE Filters NONE Steam 1 RUN: 63f5b198-9075-4896-958d-09d11f3d1888